Workbook

Sheet 一类岗女性
A1: 长治市荣通人力资源有限公司招聘上党区教育系统劳务派遣制幼儿教师体检入闱人员名单（一类岗女性）
A2: 序号 | B2: 姓名 | C2: 身份证号 | D2: 笔试准考证号 | E2: 报考岗位 | F2: 笔试成绩（50%） | H2: 面试成绩（50%） | L2: 综合成绩=面试*50%+笔试*50% | M2: 备注
F3: 笔试成绩 | G3: 笔试权重分（50%） | H3: 面试成绩 | I3: 面试考场 | J3: 面试抽签号 | K3: 面试权重分（50%）
G4: 面试权重分（60%） | K4: 面试权重分（60%）
A5: 1 | B5: 王玉杰 | C5: 140524****068040 | D5: 20201024078 | E5: 一类岗 | F5: 84 | G5: =F5*0.5 -> 42.00 | H5: 92.00 | I5: 第二考场 | J5: 05 | K5: =H5*0.5 -> 46.00 | L5: =G5+K5 -> 88.00
A6: 2 | B6: 崔沐然 | C6: 140581****092321 | D6: 20201024111 | E6: 一类岗 | F6: 79 | G6: =F6*0.5 -> 39.50 | H6: 96.00 | I6: 第二考场 | J6: 10 | K6: =H6*0.5 -> 48.00 | L6: =G6+K6 -> 87.50
A7: 3 | B7: 许梦雪 | C7: 140581****294844 | D7: 20201024063 | E7: 一类岗 | F7: 85 | G7: =F7*0.5 -> 42.50 | H7: 90.00 | I7: 第二考场 | J7: 21 | K7: =H7*0.5 -> 45.00 | L7: =G7+K7 -> 87.50
A8: 4 | B8: 贾玉鹏 | C8: 140402****223645 | D8: 20201024242 | E8: 一类岗 | F8: 79 | G8: =F8*0.5 -> 39.50 | H8: 92.67 | I8: 第一考场 | J8: 17 | K8: =H8*0.5 -> 46.34 | L8: =G8+K8 -> 85.84
A9: 5 | B9: 宋婷婷 | C9: 140428****117240 | D9: 20201024100 | E9: 一类岗 | F9: 81 | G9: =F9*0.5 -> 40.50 | H9: 90.67 | I9: 第三考场 | J9: 20 | K9: =H9*0.5 -> 45.34 | L9: =G9+K9 -> 85.84
A10: 6 | B10: 梁敏 | C10: 140411****246042 | D10: 20201024211 | E10: 一类岗 | F10: 87 | G10: =F10*0.5 -> 43.50 | H10: 83.33 | I10: 第三考场 | J10: 14 | K10: =H10*0.5 -> 41.67 | L10: =G10+K10 -> 85.17
A11: 7 | B11: 牛倩 | C11: 140427****128085 | D11: 20201024209 | E11: 一类岗 | F11: 78 | G11: =F11*0.5 -> 39.00 | H11: 91.33 | I11: 第三考场 | J11: 23 | K11: =H11*0.5 -> 45.67 | L11: =G11+K11 -> 84.67
A12: 8 | B12: 李洁 | C12: 140581****242345 | D12: 20201024121 | E12: 一类岗 | F12: 83 | G12: =F12*0.5 -> 41.50 | H12: 86.00 | I12: 第一考场 | J12: 03 | K12: =H12*0.5 -> 43.00 | L12: =G12+K12 -> 84.50
A13: 9 | B13: 王妞妞 | C13: 140421****124020 | D13: 20201024049 | E13: 一类岗 | F13: 80 | G13: =F13*0.5 -> 40.00 | H13: 88.67 | I13: 第二考场 | J13: 04 | K13: =H13*0.5 -> 44.34 | L13: =G13+K13 -> 84.34
A14: 10 | B14: 赵雅欣 | C14: 140581****101923 | D14: 20201024067 | E14: 一类岗 | F14: 74 | G14: =F14*0.5 -> 37.00 | H14: 92.67 | I14: 第二考场 | J14: 16 | K14: =H14*0.5 -> 46.34 | L14: =G14+K14 -> 83.34
A15: 11 | B15: 赵敏 | C15: 140524****202022 | D15: 20201024152 | E15: 一类岗 | F15: 79 | G15: =F15*0.5 -> 39.50 | H15: 86.67 | I15: 第三考场 | J15: 04 | K15: =H15*0.5 -> 43.34 | L15: =G15+K15 -> 82.84
A16: 12 | B16: 高佳佳 | C16: 140481****09168X | D16: 20201024075 | E16: 一类岗 | F16: 85 | G16: =F16*0.5 -> 42.50 | H16: 80.00 | I16: 第二考场 | J16: 15 | K16: =H16*0.5 -> 40.00 | L16: =G16+K16 -> 82.50
A17: 13 | B17: 悦琛琛 | C17: 140581****299862 | D17: 20201024241 | E17: 一类岗 | F17: 79 | G17: =F17*0.5 -> 39.50 | H17: 86.00 | I17: 第三考场 | J17: 10 | K17: =H17*0.5 -> 43.00 | L17: =G17+K17 -> 82.50
A18: 14 | B18: 王静 | C18: 140428****292422 | D18: 20201024193 | E18: 一类岗 | F18: 83 | G18: =F18*0.5 -> 41.50 | H18: 81.67 | I18: 第一考场 | J18: 07 | K18: =H18*0.5 -> 40.84 | L18: =G18+K18 -> 82.34
A19: 15 | B19: 牛雅雅 | C19: 140428****190027 | D19: 20201024118 | E19: 一类岗 | F19: 76 | G19: =F19*0.5 -> 38.00 | H19: 88.67 | I19: 第三考场 | J19: 15 | K19: =H19*0.5 -> 44.34 | L19: =G19+K19 -> 82.34
A20: 16 | B20: 徐恺妮 | C20: 140427****258102 | D20: 20201024113 | E20: 一类岗 | F20: 76 | G20: =F20*0.5 -> 38.00 | H20: 88.67 | I20: 第三考场 | J20: 22 | K20: =H20*0.5 -> 44.34 | L20: =G20+K20 -> 82.34
A21: 17 | B21: 李艳朵 | C21: 140581****074521 | D21: 20201024062 | E21: 一类岗 | F21: 87 | G21: =F21*0.5 -> 43.50 | H21: 77.33 | I21: 第一考场 | J21: 18 | K21: =H21*0.5 -> 38.67 | L21: =G21+K21 -> 82.17
A22: 18 | B22: 程丹娅 | C22: 140428****056425 | D22: 20201024136 | E22: 一类岗 | F22: 80 | G22: =F22*0.5 -> 40.00 | H22: 84.00 | I22: 第二考场 | J22: 22 | K22: =H22*0.5 -> 42.00 | L22: =G22+K22 -> 82.00
A23: 19 | B23: 张欢宇 | C23: 140581****174824 | D23: 20201024076 | E23: 一类岗 | F23: 77 | G23: =F23*0.5 -> 38.50 | H23: 86.67 | I23: 第二考场 | J23: 24 | K23: =H23*0.5 -> 43.34 | L23: =G23+K23 -> 81.84
A24: 20 | B24: 郭新钰 | C24: 140421****042425 | D24: 20201024003 | E24: 一类岗 | F24: 75 | G24: =F24*0.5 -> 37.50 | H24: 88.67 | I24: 第三考场 | J24: 12 | K24: =H24*0.5 -> 44.34 | L24: =G24+K24 -> 81.84
A25: 21 | B25: 郭晓笑 | C25: 140481****193627 | D25: 20201024089 | E25: 一类岗 | F25: 78 | G25: =F25*0.5 -> 39.00 | H25: 85.33 | I25: 第一考场 | J25: 05 | K25: =H25*0.5 -> 42.67 | L25: =G25+K25 -> 81.67
A26: 22 | B26: 韩星雨 | C26: 140428****109245 | D26: 20201024212 | E26: 一类岗 | F26: 79 | G26: =F26*0.5 -> 39.50 | H26: 84.33 | I26: 第三考场 | J26: 05 | K26: =H26*0.5 -> 42.17 | L26: =G26+K26 -> 81.67
A27: 23 | B27: 王梦丹 | C27: 140581****182625 | D27: 20201024044 | E27: 一类岗 | F27: 74 | G27: =F27*0.5 -> 37.00 | H27: 88.67 | I27: 第一考场 | J27: 10 | K27: =H27*0.5 -> 44.34 | L27: =G27+K27 -> 81.34
A28: 24 | B28: 李姿瑶 | C28: 140421****103642 | D28: 20201024129 | E28: 一类岗 | F28: 78 | G28: =F28*0.5 -> 39.00 | H28: 84.67 | I28: 第二考场 | J28: 23 | K28: =H28*0.5 -> 42.34 | L28: =G28+K28 -> 81.34
A29: 25 | B29: 吴亚君 | C29: 140431****100825 | D29: 20201024233 | E29: 一类岗 | F29: 77 | G29: =F29*0.5 -> 38.50 | H29: 85.33 | I29: 第一考场 | J29: 08 | K29: =H29*0.5 -> 42.67 | L29: =G29+K29 -> 81.17
A30: 26 | B30: 郑瑞宵 | C30: 140424****154022 | D30: 20201024163 | E30: 一类岗 | F30: 75 | G30: =F30*0.5 -> 37.50 | H30: 87.33 | I30: 第二考场 | J30: 14 | K30: =H30*0.5 -> 43.67 | L30: =G30+K30 -> 81.17
A31: 27 | B31: 原佳慧 | C31: 140428****276021 | D31: 20201024034 | E31: 一类岗 | F31: 82 | G31: =F31*0.5 -> 41.00 | H31: 80.00 | I31: 第二考场 | J31: 26 | K31: =H31*0.5 -> 40.00 | L31: =G31+K31 -> 81.00
A32: 28 | B32: 陈文惠 | C32: 140424****283247 | D32: 20201024084 | E32: 一类岗 | F32: 83 | G32: =F32*0.5 -> 41.50 | H32: 78.67 | I32: 第二考场 | J32: 11 | K32: =H32*0.5 -> 39.34 | L32: =G32+K32 -> 80.84
A33: 29 | B33: 郭玲玲 | C33: 140427****020020 | D33: 20201024239 | E33: 一类岗 | F33: 76 | G33: =F33*0.5 -> 38.00 | H33: 85.33 | I33: 第二考场 | J33: 07 | K33: =H33*0.5 -> 42.67 | L33: =G33+K33 -> 80.67
A34: 30 | B34: 张汝汝 | C34: 140581****115524 | D34: 20201024052 | E34: 一类岗 | F34: 77 | G34: =F34*0.5 -> 38.50 | H34: 84.33 | I34: 第三考场 | J34: 03 | K34: =H34*0.5 -> 42.17 | L34: =G34+K34 -> 80.67
A35: 31 | B35: 张香 | C35: 140431****050027 | D35: 20201024081 | E35: 一类岗 | F35: 80 | G35: =F35*0.5 -> 40.00 | H35: 81.33 | I35: 第三考场 | J35: 09 | K35: =H35*0.5 -> 40.67 | L35: =G35+K35 -> 80.67
A36: 32 | B36: 王建兰 | C36: 140581****031144 | D36: 20201024167 | E36: 一类岗 | F36: 83 | G36: =F36*0.5 -> 41.50 | H36: 78.00 | I36: 第一考场 | J36: 14 | K36: =H36*0.5 -> 39.00 | L36: =G36+K36 -> 80.50
A37: 33 | B37: 贾琪 | C37: 140424****193643 | D37: 20201024144 | E37: 一类岗 | F37: 75 | G37: =F37*0.5 -> 37.50 | H37: 86.00 | I37: 第一考场 | J37: 19 | K37: =H37*0.5 -> 43.00 | L37: =G37+K37 -> 80.50
A38: 34 | B38: 梁怡 | C38: 140411****203625 | D38: 20201024014 | E38: 一类岗 | F38: 83 | G38: =F38*0.5 -> 41.50 | H38: 77.33 | I38: 第一考场 | J38: 02 | K38: =H38*0.5 -> 38.67 | L38: =G38+K38 -> 80.17
A39: 35 | B39: 张帆 | C39: 140581****026527 | D39: 20201024196 | E39: 一类岗 | F39: 77 | G39: =F39*0.5 -> 38.50 | H39: 83.33 | I39: 第三考场 | J39: 26 | K39: =H39*0.5 -> 41.67 | L39: =G39+K39 -> 80.17
A40: 36 | B40: 宋梦鑫 | C40: 140581****223923 | D40: 20201024058 | E40: 一类岗 | F40: 78 | G40: =F40*0.5 -> 39.00 | H40: 82.00 | I40: 第一考场 | J40: 20 | K40: =H40*0.5 -> 41.00 | L40: =G40+K40 -> 80.00
A41: 37 | B41: 李丽 | C41: 140425****060029 | D41: 20201024227 | E41: 一类岗 | F41: 78 | G41: =F41*0.5 -> 39.00 | H41: 82.00 | I41: 第二考场 | J41: 03 | K41: =H41*0.5 -> 41.00 | L41: =G41+K41 -> 80.00
A42: 38 | B42: 李鹏 | C42: 140424****20602X | D42: 20201024147 | E42: 一类岗 | F42: 81 | G42: =F42*0.5 -> 40.50 | H42: 78.00 | I42: 第三考场 | J42: 08 | K42: =H42*0.5 -> 39.00 | L42: =G42+K42 -> 79.50
